fUST/lending_fUST_20250202
["ID","MTS","AMOUNT","RATE_DAILY","PERIOD"]
[351259650,1738492237096,-500.0,0.00016438,2]
[351259651,1738492237105,-500.0,0.00016438,2]
[351259652,1738492237114,-500.0,0.00016438,2]
[351259653,1738492237123,-500.0,0.00016438,2]
[351259654,1738492237132,-500.0,0.00016438,2]
[351259655,1738492237141,-500.0,0.00016438,2]
[351259656,1738492237151,-500.0,0.00016438,2]
[351259657,1738492237160,-500.0,0.00016438,2]
[351259658,1738492237169,-500.0,0.00016438,2]
[351259659,1738492237179,-500.0,0.00016438,2]
[351259660,1738492237187,-500.0,0.00016438,2]
[351259661,1738492237197,-500.0,0.00016438,2]
[351259662,1738492237207,-500.0,0.00016438,2]
[351259663,1738492237217,-500.0,0.00016438,2]
[351259664,1738492237226,-500.0,0.00016438,2]
[351259666,1738492237238,-500.0,0.00016438,2]
[351259668,1738492237248,-612.99,0.00016438,2]
[351259669,1738492237258,-3461.23,0.00016438,2]
[351259670,1738492237268,-500.0,0.00016438,2]
[351259671,1738492237278,-500.0,0.00016438,2]
[351259673,1738492237288,-500.0,0.00016438,2]
[351259674,1738492237298,-166.41571101,0.00016438,2]
[351259675,1738492237308,-500.0,0.00016438,2]
[351259676,1738492237318,-500.0,0.00016438,2]
[351259677,1738492237329,-500.0,0.00016438,2]
[351259678,1738492237338,-500.0,0.00016438,2]
[351259679,1738492237348,-500.0,0.00016438,2]
[351259680,1738492237357,-500.0,0.00016438,2]
[351259681,1738492237366,-500.0,0.00016438,2]
[351259682,1738492237375,-500.0,0.00016438,2]
[351259683,1738492237385,-500.0,0.00016438,2]
[351259684,1738492237394,-500.0,0.00016438,2]
[351259685,1738492237403,-500.0,0.00016438,2]
[351259686,1738492237413,-500.0,0.00016438,2]
[351259687,1738492237539,-500.0,0.00016438,2]
[351259688,1738492237550,-520.68859544,0.00016438,2]
[351259689,1738492237560,-500.0,0.00016438,2]
[351259690,1738492237570,-569.27,0.00016438,2]
[351259691,1738492237579,-500.0,0.00016438,2]
[351259692,1738492237589,-500.0,0.00016438,2]
[351259693,1738492237598,-1019.51,0.00016438,2]
[351259694,1738492237607,-500.0,0.00016438,2]
[351259695,1738492237617,-356.6652349,0.00016438,2]
[351259696,1738492237626,-500.0,0.00016438,2]
[351259697,1738492237637,-500.0,0.00016438,2]
[351259698,1738492237647,-500.0,0.00016438,2]
[351259699,1738492237659,-500.0,0.00016438,2]
[351259700,1738492237671,-500.0,0.00016438,2]
[351259701,1738492237681,-500.0,0.00016438,2]
[351259702,1738492237690,-500.0,0.00016438,2]
[351259703,1738492237699,-500.0,0.00016438,2]
[351259704,1738492237710,-500.0,0.00016438,2]
[351259705,1738492237720,-500.0,0.00016438,2]
[351259706,1738492237731,-501.31913381,0.00016438,2]
[351259707,1738492237740,-500.0,0.00016438,2]
[351259708,1738492237749,-501.20210509,0.00016438,2]
[351259709,1738492237759,-500.0,0.00016438,2]
[351259710,1738492237768,-5399.4,0.00016438,2]
[351259711,1738492237778,-500.0,0.00016438,2]
[351259712,1738492237788,-500.0,0.00016438,2]
[351259713,1738492237797,-500.0,0.00016438,2]
[351259714,1738492237807,-500.0,0.00016438,2]
[351259715,1738492237816,-418.73119519,0.00016438,2]
[351259716,1738492237826,-423.8417542,0.00016438,2]
[351259717,1738492237835,-500.0,0.00016438,2]
[351259718,1738492237844,-500.0,0.00016438,2]
[351259719,1738492237854,-445.47,0.00016438,2]
[351259720,1738492237864,-500.0,0.00016438,2]
[351259721,1738492237873,-500.0,0.00016438,2]
[351259722,1738492237883,-500.0,0.00016438,2]
[351259723,1738492237892,-500.0,0.00016438,2]
[351259724,1738492237902,-1884.38,0.00016438,2]
[351259725,1738492237912,-500.0,0.00016438,2]
[351259726,1738492237922,-500.0,0.00016438,2]
[351259727,1738492237931,-500.0,0.00016438,2]
[351259728,1738492237941,-500.0,0.00016438,2]
[351259730,1738492237950,-725.42,0.00016438,2]
[351259731,1738492237959,-172.10795662,0.00016438,2]
[351259733,1738492237969,-58.23628244,0.00016438,2]
[351259734,1738492237984,-441.76371756,0.00016438,2]
[351259735,1738492237993,-213.09720226,0.00016438,2]
[351259736,1738492238006,-286.90279774,0.00016438,2]
[351259737,1738492238016,-500.0,0.00016438,2]
[351259738,1738492238026,-500.0,0.00016438,2]
[351259739,1738492238036,-500.0,0.00016438,2]
[351259740,1738492238046,-500.0,0.00016438,2]
[351259741,1738492238055,-584.88,0.00016438,2]
[351259742,1738492238066,-500.0,0.00016438,2]
[351259744,1738492238075,-269.14233695,0.00016475,2]
[351259745,1738492238084,-500.0,0.0001657,2]
[351259746,1738492238093,-500.0,0.0001657,2]
[351259747,1738492238103,-500.0,0.0001657,2]
[351259748,1738492238112,-500.0,0.0001657,2]
[351259749,1738492238122,-500.0,0.0001657,2]
[351259751,1738492238132,-500.0,0.0001657,2]
[351259753,1738492238142,-401.69871018,0.0001657,2]
[351259754,1738492238151,-500.0,0.0001657,2]
[351259756,1738492238162,-500.0,0.0001657,2]
[351259757,1738492238172,-346.65749972,0.0001657,2]
[351259758,1738492238182,-500.0,0.0001657,2]
[351259759,1738492238191,-500.0,0.0001657,2]
[351259761,1738492238202,-500.0,0.0001657,2]
[351259763,1738492238211,-500.0,0.0001657,2]
[351259764,1738492238221,-500.0,0.0001657,2]
[351259765,1738492238232,-500.0,0.0001657,2]
[351259766,1738492238246,-500.0,0.0001657,2]
[351259768,1738492238255,-500.0,0.0001657,2]
[351259770,1738492238265,-500.0,0.0001657,2]
[351259771,1738492238274,-500.0,0.0001657,2]
[351259772,1738492238285,-500.0,0.0001657,2]
[351259773,1738492238294,-91.67879763,0.0001657,2]
[351259797,1738492240815,-500.0,0.00016438,2]
[351259798,1738492240824,-500.0,0.00016438,2]
[351259799,1738492240833,-500.0,0.00016438,2]
[351259800,1738492240852,-500.0,0.00016438,2]
[351259801,1738492240863,-408.32120237,0.0001657,2]
[351259802,1738492240874,-280.22532962,0.0001657,2]
[351259803,1738492240884,-500.0,0.0001657,2]
[351259804,1738492240895,-500.0,0.0001657,2]
[351259805,1738492240905,-500.0,0.0001657,2]
[351259806,1738492240915,-500.0,0.0001657,2]
[351259807,1738492240925,-500.0,0.0001657,2]
[351259808,1738492240935,-500.0,0.0001657,2]
[351259809,1738492240945,-500.0,0.0001657,2]
[351259810,1738492240955,-500.0,0.0001657,2]
[351259811,1738492240964,-500.0,0.0001657,2]
[351259812,1738492240974,-5.83085151,0.0001657,2]
[351259840,1738492243124,861.23,0.00010959,2]
[351259878,1738492243831,-460.6049922,0.0001657,2]
[351259879,1738492243889,-33.56415629,0.0001657,2]
[351259880,1738492243898,-500.0,0.0001657,2]
[351259881,1738492243907,-500.0,0.0001657,2]
[351259882,1738492243916,-500.0,0.0001657,2]
[351259883,1738492243925,-500.0,0.0001657,2]
[351259884,1738492243934,-500.0,0.00016575,2]
[351259885,1738492243944,-500.0,0.00016575,2]
[351259886,1738492243955,-500.0,0.00016575,2]
[351259887,1738492243964,-500.0,0.00016575,2]
[351259888,1738492243974,-500.0,0.00016575,2]
[351259889,1738492243984,-612.99,0.00016575,2]
[351259891,1738492243994,-3461.23,0.00016575,2]
[351259892,1738492244005,-200.88,0.00016575,2]
[351259893,1738492244015,-569.27,0.00016575,2]
[351259894,1738492244026,-1019.51,0.00016575,2]
[351259895,1738492244035,-500.0,0.00016575,2]
[351259896,1738492244046,-447.05584371,0.00016575,2]
[351259897,1738492244058,-52.94415629,0.00016575,2]
[351259898,1738492244068,-313.93102998,0.00016575,2]
[351259899,1738492244088,-186.06897002,0.00016575,2]
[351259900,1738492244098,-5399.4,0.00016575,2]
[351259901,1738492244108,-500.0,0.00016575,2]
[351259902,1738492244118,-313.48,0.00016575,2]
[351259903,1738492244128,-500.0,0.00016575,2]
[351259904,1738492244138,-500.0,0.00016575,2]
[351259905,1738492244148,-500.0,0.00016575,2]
[351259906,1738492244159,-1884.38,0.00016575,2]
[351259907,1738492244168,-500.0,0.00016575,2]
[351259908,1738492244178,-725.42,0.00016575,2]
[351259909,1738492244188,-584.64146572,0.00016575,2]
[351259910,1738492244199,-584.88,0.00016575,2]
[351259911,1738492244209,-500.0,0.00016575,2]
[351259912,1738492244219,-354.4946044,0.000166,2]
[351259913,1738492244228,-354.4946044,0.000166,2]
[351259914,1738492244241,-354.4946044,0.000166,2]
[351259915,1738492244250,-354.4946044,0.000166,2]
[351259916,1738492244259,-354.4946044,0.000166,2]
[351259917,1738492244269,-703.5017827,0.000166,2]
[351259918,1738492244279,-354.4946044,0.00016641,2]
[351259920,1738492244289,-500.0,0.00016712,2]
[351259922,1738492244298,-500.0,0.00016712,2]
[351259923,1738492244307,-64.91585252,0.00016712,2]
[351259931,1738492246717,-435.08414748,0.00016712,2]
[351259932,1738492246727,-500.0,0.00016712,2]
[351259933,1738492246737,-612.99,0.00016712,2]
[351259934,1738492246747,-3461.23,0.00016712,2]
[351259935,1738492246758,-569.27,0.00016712,2]
[351259936,1738492246768,-1019.51,0.00016712,2]
[351259937,1738492246778,-500.0,0.00016712,2]
[351259938,1738492246789,-500.0,0.00016712,2]
[351259940,1738492246798,-500.0,0.00016712,2]
[351259942,1738492246808,-5399.4,0.00016712,2]
[351259944,1738492246817,-500.0,0.00016712,2]
[351259946,1738492246827,-500.0,0.00016712,2]
[351259948,1738492246836,-500.0,0.00016712,2]
[351259950,1738492246846,-500.0,0.00016712,2]
[351259952,1738492246855,-1884.38,0.00016712,2]
[351259954,1738492246864,-500.0,0.00016712,2]
[351259956,1738492246874,-725.42,0.00016712,2]
[351259958,1738492246883,-584.88,0.00016712,2]
[351259960,1738492246892,-500.0,0.00016712,2]
[351259962,1738492246902,-500.0,0.00016849,2]
[351259964,1738492246911,-500.0,0.00016849,2]
[351259966,1738492246921,-500.0,0.00016849,2]
[351259968,1738492246930,-612.99,0.00016849,2]
[351259970,1738492246939,-3461.23,0.00016849,2]
[351259972,1738492246948,-569.27,0.00016849,2]
[351259974,1738492246958,-1019.51,0.00016849,2]
[351259976,1738492246968,-500.0,0.00016849,2]
[351259978,1738492246978,-500.0,0.00016849,2]
[351259980,1738492246989,-500.0,0.00016849,2]
[351259981,1738492246999,-5399.4,0.00016849,2]
[351259982,1738492247009,-500.0,0.00016849,2]
[351259983,1738492247018,-500.0,0.00016849,2]
[351259984,1738492247028,-500.0,0.00016849,2]
[351259985,1738492247037,-500.0,0.00016849,2]
[351259986,1738492247167,-1884.38,0.00016849,2]
[351259987,1738492247178,-500.0,0.00016849,2]
[351259988,1738492247187,-725.42,0.00016849,2]
[351259989,1738492247197,-584.88,0.00016849,2]
[351259990,1738492247206,-500.0,0.00016849,2]
[351259991,1738492247216,-258.23765027,0.000169,2]
[351259992,1738492247226,-258.23765006,0.00016934,2]
[351259993,1738492247237,-258.23765006,0.00016969,2]
[351259994,1738492247248,-500.0,0.00016986,2]
[351259995,1738492247258,-500.0,0.00016986,2]
[351259996,1738492247268,-382.46949928,0.00016986,2]
[351259997,1738492247277,-612.99,0.00016986,2]
[351259998,1738492247288,-3461.23,0.00016986,2]
[351259999,1738492247297,-569.27,0.00016986,2]
[351260000,1738492247307,-1019.51,0.00016986,2]
[351260001,1738492247317,-500.0,0.00016986,2]
[351260002,1738492247327,-500.0,0.00016986,2]
[351260003,1738492247337,-500.0,0.00016986,2]
[351260004,1738492247347,-5399.4,0.00016986,2]
[351260005,1738492247356,-500.0,0.00016986,2]
[351260006,1738492247366,-500.0,0.00016986,2]
[351260007,1738492247375,-500.0,0.00016986,2]
[351260008,1738492247385,-500.0,0.00016986,2]
[351260009,1738492247394,-1884.38,0.00016986,2]
[351260010,1738492247404,-500.0,0.00016986,2]
[351260011,1738492247413,-725.42,0.00016986,2]
[351260012,1738492247422,-584.88,0.00016986,2]
[351260013,1738492247431,-500.0,0.00016986,2]
[351260014,1738492247441,-486.52517152,0.00016999,2]
[351260015,1738492247451,-18937.277874,0.00017,3]
[351260016,1738492247463,-3636.59578717,0.00017,3]
[351260037,1738492840284,233.122321,0.00013699,2]
[351260038,1738492855352,182.969833,0.00013973,2]
[351260039,1738492951273,221.88,0.00015011,2]
[351260049,1738493238601,2877.04327107,0.00015011,2]
[351260199,1738493439054,-300.0,0.00015087,2]
[351260200,1738493439063,-4693.98216433,0.00015088,2]
[351260201,1738493439075,-309.48171212,0.00015088,2]
[351260210,1738493440856,-331.40099454,0.00015088,2]
[351260216,1738493440911,-1279.45430025,0.00015088,2]
[351260218,1738493440923,-3212.75646476,0.00015088,2]
[351260219,1738493440968,-991.3227342,0.00015088,2]
[351260220,1738493440977,-345.302441,0.00015218,2]
[351260221,1738493440987,-500.0,0.00015342,2]
[351260222,1738493440997,-24900.0,0.00015438,2]
[351260223,1738493441007,-2050.7570499,0.00015561,2]
[351260224,1738493441016,-1809.54867369,0.00016437,2]
[351260226,1738493441026,-6098.675129,0.00016437,2]
[351260228,1738493441035,-500.0,0.00016437,2]
[351260229,1738493441044,-199.8015566,0.00016437,2]
[351260230,1738493441054,-254.25904476,0.00016437,2]
[351260231,1738493441063,-500.0,0.00016437,2]
[351260232,1738493441072,-500.0,0.00016437,2]
[351260233,1738493441082,-500.0,0.00016437,2]
[351260234,1738493441091,-500.0,0.00016437,2]
[351260235,1738493441100,-500.0,0.00016437,2]
[351260236,1738493441109,-500.0,0.00016437,2]
[351260237,1738493441119,-500.0,0.00016437,2]
[351260238,1738493441129,-432.34996288,0.00016437,2]
[351260239,1738493441138,-500.0,0.00016437,2]
[351260241,1738493441147,-500.0,0.00016437,2]
[351260243,1738493441156,-500.0,0.00016437,2]
[351260245,1738493441166,-500.0,0.00016437,2]
[351260246,1738493441176,-500.0,0.00016437,2]
[351260247,1738493441185,-500.0,0.00016437,2]
[351260248,1738493441194,-500.0,0.00016437,2]
[351260249,1738493441203,-500.0,0.00016437,2]
[351260250,1738493441212,-500.0,0.00016437,2]
[351260251,1738493441222,-500.0,0.00016437,2]
[351260252,1738493441231,-500.0,0.00016437,2]
[351260253,1738493441241,-500.0,0.00016437,2]
[351260254,1738493441251,-500.0,0.00016437,2]
[351260255,1738493441261,-500.0,0.00016437,2]
[351260256,1738493441270,-500.0,0.00016437,2]
[351260257,1738493441280,-500.0,0.00016437,2]
[351260258,1738493441290,-500.0,0.00016437,2]
[351260259,1738493441300,-500.0,0.00016437,2]
[351260260,1738493441310,-500.0,0.00016437,2]
[351260261,1738493441320,-500.0,0.00016437,2]
[351260262,1738493441330,-170.12449199,0.00016437,2]
[351260263,1738493441339,-500.0,0.00016437,2]
[351260264,1738493441349,-500.0,0.00016437,2]
[351260265,1738493441359,-500.0,0.00016437,2]
[351260266,1738493441369,-500.0,0.00016437,2]
[351260267,1738493441379,-500.0,0.00016437,2]
[351260268,1738493441388,-500.0,0.00016437,2]
[351260269,1738493441398,-500.0,0.00016437,2]
[351260270,1738493441407,-500.0,0.00016437,2]
[351260271,1738493441416,-500.0,0.00016437,2]
[351260272,1738493441426,-500.0,0.00016437,2]
[351260273,1738493441435,-526.35462843,0.00016437,2]
[351260274,1738493441444,-78.28233708,0.00016437,2]
[351260306,1738493446757,-421.71766292,0.00016437,2]
[351260308,1738493446767,-317.42768299,0.00016437,2]
[351260309,1738493446779,-500.0,0.00016438,2]
[351260310,1738493446788,-449.46208928,0.00016438,2]
[351260311,1738493446797,-500.0,0.00016438,2]
[351260312,1738493446807,-509.00662334,0.00016438,2]
[351260313,1738493446816,-500.0,0.00016438,2]
[351260314,1738493446826,-500.0,0.00016438,2]
[351260315,1738493446835,-500.0,0.00016438,2]
[351260316,1738493446844,-500.0,0.00016438,2]
[351260317,1738493446854,-500.0,0.00016438,2]
[351260318,1738493446863,-500.0,0.00016438,2]
[351260319,1738493446873,-500.40677505,0.00016438,2]
[351260320,1738493446882,-501.60542401,0.00016438,2]
[351260321,1738493446891,-405.25053296,0.00016438,2]
[351260322,1738493446901,-500.0,0.00016438,2]
[351260323,1738493446910,-500.0,0.00016438,2]
[351260324,1738493446919,-500.0,0.00016438,2]
[351260325,1738493446929,-502.40845415,0.00016438,2]
[351260326,1738493446938,-500.0,0.00016438,2]
[351260327,1738493446948,-500.0,0.00016438,2]
[351260328,1738493446957,-500.0,0.00016438,2]
[351260329,1738493446967,-500.0,0.00016438,2]
[351260330,1738493446975,-500.0,0.00016438,2]
[351260331,1738493446985,-502.09160468,0.00016438,2]
[351260332,1738493446995,-500.0,0.00016438,2]
[351260333,1738493447004,-500.0,0.00016438,2]
[351260334,1738493447014,-510.08604802,0.00016438,2]
[351260335,1738493447023,-500.0,0.00016438,2]
[351260336,1738493447032,-510.40218062,0.00016438,2]
[351260337,1738493447042,-500.0,0.00016438,2]
[351260338,1738493447051,-500.0,0.00016438,2]
[351260339,1738493447060,-500.0,0.00016438,2]
[351260340,1738493447069,-220.91395251,0.00016438,2]
[351260342,1738493873989,184.077681,0.00013973,2]
[351260347,1738494324608,424.2582052,0.00014768,2]
[351260351,1738494625720,250.0,0.00014844,2]
[351260422,1738494632095,-744.580798,0.00015076,2]
[351260424,1738494632114,-300.0,0.00015221,2]
[351260426,1738494632125,-582.20564879,0.00015222,2]
[351260430,1738494632150,-7259.7133056,0.00015222,2]
[351260494,1738494632776,-14825.96974441,0.00015222,2]
[351260534,1738494637850,-317.21000001,0.00015222,2]
[351260535,1738494637905,-1914.90130119,0.00015222,2]
[351260536,1738494637915,-2247.13311809,0.00015242,2]
[351260537,1738494637924,-339.6297755,0.00015311,2]
[351260538,1738494637934,-500.0,0.00015342,2]
[351260539,1738494637943,-4672.25348,0.00015424,2]
[351260540,1738494637954,-515.30878253,0.00016064,2]
[351260541,1738494637964,-154.4475723,0.000161,2]
[351260542,1738494637973,-154.4475723,0.000161,2]
[351260543,1738494638090,-153.0,0.000161,2]
[351260544,1738494638100,-153.0,0.000161,2]
[351260546,1738494638113,-307.0250046,0.000161,2]
[351260548,1738494638122,-215.6245758,0.000161,2]
[351260550,1738494638131,-153.0,0.000161,2]
[351260552,1738494638141,-7682.48025238,0.0001626,2]
[351260554,1738494638153,-345.54882311,0.0001626,2]
[351260555,1738494638164,-398.188,0.0001626,2]
[351260557,1738494638175,-4628.81263144,0.0001626,2]
[351260558,1738494638185,-153.0,0.000163,2]
[351260560,1738494638195,-153.0,0.000163,2]
[351260562,1738494638204,-154.4475723,0.000163,2]
[351260564,1738494638213,-215.6245758,0.000163,2]
[351260565,1738494638222,-153.0,0.000163,2]
[351260566,1738494638231,-153.0,0.000163,2]
[351260567,1738494638245,-153.0,0.000163,2]
[351260568,1738494638254,-154.4475723,0.000163,2]
[351260570,1738494638263,-215.6245758,0.000163,2]
[351260571,1738494638273,-153.0,0.000163,2]
[351260572,1738494638282,-3000.0,0.000164,2]
[351260574,1738494638291,-3000.0,0.0001641,2]
[351260575,1738494638300,-3000.0,0.0001642,2]
[351260576,1738494638310,-3000.0,0.0001643,2]
[351260577,1738494638319,-527.98133133,0.00016437,2]
[351260578,1738494638338,-432.63301604,0.00016437,2]
[351260579,1738494638351,-501.08047821,0.00016438,2]
[351260580,1738494638361,-500.0,0.00016438,2]
[351260581,1738494638370,-500.60569612,0.00016438,2]
[351260582,1738494638380,-502.07514818,0.00016438,2]
[351260583,1738494638390,-500.0,0.00016438,2]
[351260584,1738494638400,-500.0,0.00016438,2]
[351260585,1738494638410,-500.51664669,0.00016438,2]
[351260586,1738494638419,-500.0,0.00016438,2]
[351260587,1738494638429,-500.0,0.00016438,2]
[351260588,1738494638439,-500.0,0.00016438,2]
[351260589,1738494638448,-575.7623063,0.00016438,2]
[351260590,1738494638458,-500.0,0.00016438,2]
[351260591,1738494638467,-500.0,0.00016438,2]
[351260592,1738494638477,-500.0,0.00016438,2]
[351260593,1738494638486,-503.63709508,0.00016438,2]
[351260594,1738494638495,-552.3293858,0.00016438,2]
[351260595,1738494638505,-501.43014064,0.00016438,2]
[351260596,1738494638515,-500.0,0.00016438,2]
[351260597,1738494638525,-502.17910134,0.00016438,2]
[351260598,1738494638535,-500.0,0.00016438,2]
[351260599,1738494638545,-503.10080961,0.00016438,2]
[351260600,1738494638554,-460.11519765,0.00016438,2]
[351260601,1738494638563,-500.0,0.00016438,2]
[351260602,1738494638573,-578.47126726,0.00016438,2]
[351260603,1738494638582,-500.0,0.00016438,2]
[351260604,1738494638592,-506.90742783,0.00016438,2]
[351260605,1738494638602,-500.0,0.00016438,2]
[351260606,1738494638611,-500.0,0.00016438,2]
[351260607,1738494638621,-500.0,0.00016438,2]
[351260608,1738494638631,-500.0,0.00016438,2]
[351260609,1738494638640,-500.0,0.00016438,2]
[351260610,1738494638650,-500.0,0.00016438,2]
[351260611,1738494638659,-500.0,0.00016438,2]
[351260612,1738494638669,-500.0,0.00016438,2]
[351260613,1738494638678,-252.15708785,0.00016438,2]
[351260614,1738494638687,-500.0,0.00016438,2]
[351260615,1738494638696,-500.0,0.00016438,2]
[351260616,1738494638706,-109.02701686,0.00016438,2]
[351260617,1738494638736,-315.06275844,0.00016438,2]
[351260618,1738494638747,-75.9102247,0.00016438,2]
[351260619,1738494638756,-500.0,0.00016438,2]
[351260620,1738494638766,-483.48170931,0.00016438,2]
[351260621,1738494638775,-503.92136635,0.00016438,2]
[351260622,1738494638785,-87.01491643,0.00016438,2]
[351260647,1738494640282,-412.98508357,0.00016438,2]
[351260648,1738494640293,-502.17855827,0.00016438,2]
[351260649,1738494640303,-198.22712103,0.00016438,2]
[351260650,1738494640314,-502.73795895,0.00016438,2]
[351260651,1738494640323,-504.63797068,0.00016438,2]
[351260652,1738494640333,-500.0,0.00016438,2]
[351260654,1738494640343,-500.0,0.00016438,2]
[351260656,1738494640352,-500.0,0.00016438,2]
[351260657,1738494640362,-500.0,0.00016438,2]
[351260658,1738494640371,-500.0,0.00016438,2]
[351260659,1738494640380,-500.0,0.00016438,2]
[351260660,1738494640390,-500.0,0.00016438,2]
[351260661,1738494640399,-500.0,0.00016438,2]
[351260662,1738494640409,-251.5339451,0.00016438,2]
[351260663,1738494640419,-627.46353948,0.00016438,2]
[351260664,1738494640428,-524.68967964,0.00016438,2]
[351260665,1738494640438,-280.72192247,0.00016438,2]
[351260666,1738494640447,-501.55642339,0.00016438,2]
[351260667,1738494640457,-500.0,0.00016438,2]
[351260668,1738494640466,-500.0,0.00016438,2]
[351260669,1738494640476,-449.63478915,0.00016438,2]
[351260670,1738494640485,-516.53915201,0.00016438,2]
[351260671,1738494640495,-440.54249489,0.00016438,2]
[351260672,1738494640505,-500.0,0.00016438,2]
[351260673,1738494640514,-418.66492704,0.00016438,2]
[351260674,1738494640523,-509.24522709,0.00016438,2]
[351260675,1738494640532,-500.0,0.00016438,2]
[351260676,1738494640542,-502.89722518,0.00016438,2]
[351260677,1738494640552,-500.0,0.00016438,2]
[351260678,1738494640562,-506.82856057,0.00016438,2]
[351260679,1738494640575,-509.89805411,0.00016438,2]
[351260680,1738494640585,-126.55362184,0.00016438,2]
[351260681,1738494640599,-341.44156171,0.00016438,2]
[351260682,1738494640609,-507.91533261,0.00016438,2]
[351260683,1738494640619,-500.0,0.00016438,2]
[351260684,1738494640630,-500.0,0.00016438,2]
[351260685,1738494640641,-507.41575674,0.00016438,2]
[351260686,1738494640651,-500.0,0.00016438,2]
[351260687,1738494640662,-500.0,0.00016438,2]
[351260688,1738494640672,-500.0,0.00016438,2]
[351260689,1738494640683,-500.0,0.00016438,2]
[351260690,1738494640694,-644.59409372,0.00016438,2]
[351260691,1738494640704,-500.0,0.00016438,2]
[351260692,1738494640714,-500.0,0.00016438,2]
[351260693,1738494640723,-500.0,0.00016438,2]
[351260694,1738494640732,-500.0,0.00016438,2]
[351260695,1738494640742,-500.0,0.00016438,2]
[351260696,1738494640751,-500.0,0.00016438,2]
[351260697,1738494640761,-304.03852664,0.00016438,2]
[351260698,1738494640773,-195.96147336,0.00016438,2]
[351260699,1738494640783,-500.0,0.00016438,2]
[351260700,1738494640792,-500.0,0.00016438,2]
[351260701,1738494640803,-503.4631834,0.00016438,2]
[351260702,1738494640813,-500.0,0.00016438,2]
[351260703,1738494640825,-610.12909115,0.00016438,2]
[351260704,1738494640835,-500.0,0.00016438,2]
[351260705,1738494640844,-535.08159667,0.00016438,2]
[351260706,1738494640853,-511.85388783,0.00016438,2]
[351260707,1738494640863,-500.0,0.00016438,2]
[351260708,1738494640872,-500.0,0.00016438,2]
[351260709,1738494640881,-504.97012763,0.00016438,2]
[351260710,1738494640891,-500.0,0.00016438,2]
[351260711,1738494640900,-500.0,0.00016438,2]
[351260712,1738494640909,-500.0,0.00016438,2]
[351260713,1738494640918,-500.0,0.00016438,2]
[351260714,1738494640927,-500.0,0.00016438,2]
[351260715,1738494640937,-502.6869054,0.00016438,2]
[351260716,1738494640946,-500.0,0.00016438,2]
[351260717,1738494640955,-500.0,0.00016438,2]
[351260718,1738494640964,-500.0,0.00016438,2]
[351260719,1738494640973,-500.0,0.00016438,2]
[351260720,1738494640982,-505.20762032,0.00016438,2]
[351260721,1738494640992,-627.59,0.00016438,2]
[351260722,1738494641001,-199.16552161,0.00016438,2]
[351260723,1738494641010,-500.0,0.00016438,2]
[351260724,1738494641018,-500.0,0.00016438,2]
[351260725,1738494641027,-536.9767398,0.00016438,2]
[351260726,1738494641036,-500.0,0.00016438,2]
[351260727,1738494641045,-500.0,0.00016438,2]
[351260728,1738494641054,-500.0,0.00016438,2]
[351260729,1738494641063,-500.0,0.00016438,2]
[351260730,1738494641072,-500.0,0.00016438,2]
[351260731,1738494641081,-500.0,0.00016438,2]